bitfinex/quotes_SOLUSD_20250829
["timestamp","ask_amount","ask_price","bid_price","bid_amount"]
[1756457018460,1e-08,208.76,208.75,40.4048977]
[1756457018672,1e-08,208.78,208.77,26.0]
[1756457018972,1e-08,208.78,208.77,85.86926853]
[1756457019276,0.06,208.81,208.8,39.59559401]
[1756457019482,0.06,208.81,208.8,99.46486254]
[1756457020277,1e-08,208.81,208.8,104.96413457]
[1756457021279,1e-08,208.81,208.8,104.25413457]
[1756457021875,1e-08,208.81,208.8,104.96413457]
[1756457022579,1e-08,208.81,208.8,109.96413457]
[1756457023569,0.1,208.88,208.84,26.0]
[1756457023767,0.1,208.88,208.87,58.98486254]
[1756457023964,0.1,208.88,208.87,99.44486254]
[1756457024175,0.8,208.88,208.87,58.98486254]
[1756457024486,0.8,208.88,208.87,99.44486254]
[1756457024690,0.1,208.88,208.87,99.44486254]
[1756457025514,0.1,208.88,208.87,104.2325295]
[1756457025660,0.1,208.88,208.87,84.84326097]
[1756457025980,0.8,208.88,208.87,66.46]
[1756457027091,0.8,208.88,208.87,90.63693549]
[1756457027380,0.1,208.88,208.87,90.63693549]
[1756457027970,0.1,208.88,208.87,104.2325295]
[1756457028854,0.1,208.88,208.87,63.7725295]
[1756457029053,0.1,208.88,208.87,104.2125295]
[1756457029680,0.1,208.88,208.87,63.7725295]
[1756457029981,0.1,208.88,208.87,104.2125295]
[1756457031162,0.1,208.88,208.87,84.82326097]
[1756457031361,0.1,208.88,208.87,104.2125295]
[1756457032077,0.06,208.91,208.9,45.38926853]
[1756457032279,0.06,208.91,208.9,66.44]
[1756457032466,20.14926853,208.91,208.9,40.44]
[1756457032669,20.14926853,208.91,208.89,40.42]
[1756457032878,20.08926853,208.9,208.89,40.42]
[1756457033774,0.7,208.9,208.89,40.42]
[1756457034284,0.7,208.9,208.89,4.78720857]
[1756457034489,0.7,208.9,208.89,71.20720857]
[1756457034678,0.7,208.9,208.81,26.36468225]
[1756457034984,0.7,208.89,208.87,26.0]
[1756457035184,0.7,208.88,208.87,26.0]
[1756457035366,0.7,208.88,208.87,66.42]
[1756457036463,0.7,208.88,208.87,71.20766696]
[1756457036691,20.08926853,208.9,208.87,71.20766696]
[1756457036986,0.7,208.89,208.87,71.20766696]
[1756457037162,0.7,208.88,208.87,71.20766696]
[1756457037763,19.38926853,208.9,208.87,71.20766696]
[1756457038001,0.06,208.91,208.87,83.17683438]
[1756457038186,0.06,208.91,208.9,26.0]
[1756457038376,0.06,208.91,208.9,71.20697941]
[1756457039389,0.06,208.91,208.9,90.59624794]
[1756457040187,0.06,208.91,208.9,71.20697941]
[1756457040373,0.06,208.91,208.9,90.59624794]
[1756457041387,20.12926853,208.91,208.86,1.918695]
[1756457041590,19.38926853,208.88,208.86,13.59559401]
[1756457041791,19.38926853,208.88,208.87,40.4]
[1756457041981,0.06,208.91,208.87,40.4]
[1756457041982,19.38926853,208.89,208.87,40.4]
[1756457042178,0.06,208.91,208.9,26.0]
[1756457042373,19.44926853,208.91,208.9,71.18697941]
[1756457042572,0.06,208.91,208.9,71.18697941]
[1756457042774,19.44926853,208.91,208.9,71.18697941]
[1756457042970,20.12926853,208.91,208.9,71.18697941]
[1756457043178,20.12926853,208.91,208.9,4.78697941]
[1756457043394,20.12926853,208.91,208.9,45.18697941]
[1756457043595,0.74,208.91,208.9,45.18697941]
[1756457043799,0.74,208.91,208.87,37.96881486]
[1756457043800,20.12926853,208.91,208.88,4.78722049]
[1756457043977,20.06926853,208.9,208.89,66.4]
[1756457044182,20.06926853,208.9,208.89,40.4]
[1756457044480,20.06926853,208.9,208.87,4.78766696]
[1756457044685,20.06926853,208.89,208.88,40.4]
[1756457045200,0.68,208.89,208.87,40.4]
[1756457045395,20.06926853,208.88,208.86,40.4]
[1756457045606,20.06926853,208.87,208.86,40.4]
[1756457045778,20.06926853,208.87,208.85,40.38]
[1756457045975,20.06926853,208.86,208.85,40.38]
[1756457046586,20.06926853,208.86,208.85,45.16812544]
[1756457047186,20.06926853,208.86,208.83,40.38]
[1756457047187,0.68,208.86,208.83,40.38]
[1756457047375,0.06,208.91,208.82,4.78881333]
[1756457047572,0.06,208.91,208.85,0.03]
[1756457048006,0.68,208.9,208.85,40.41]
[1756457048193,0.68,208.89,208.85,40.41]
[1756457048389,0.68,208.88,208.85,40.41]
[1756457048602,0.74,208.91,208.86,4.78789619]
[1756457048899,19.38926853,208.87,208.86,4.78789619]
[1756457049202,20.06926853,208.87,208.86,45.16789619]
[1756457050380,0.06,208.91,208.87,13.59559401]
[1756457050678,0.06,208.91,208.88,40.38]
[1756457050879,0.06,208.91,208.88,60.47926853]
[1756457051296,0.06,208.91,208.88,41.09]
[1756457051491,0.06,208.93,208.9,32.98486254]
[1756457051704,0.06,208.93,208.92,26.0]
[1756457052308,0.06,208.93,208.92,30.78652115]
[1756457053003,0.06,208.93,208.92,50.88578968]
[1756457053212,0.06,208.93,208.92,4.78652115]
[1756457054607,20.12926853,208.93,208.91,4.78671909]
[1756457054918,0.06,208.93,208.9,4.78694336]
[1756457055212,0.06,208.93,208.9,45.14694336]
[1756457055389,0.68,208.92,208.9,45.14694336]
[1756457055588,0.68,208.91,208.9,45.14694336]
[1756457055806,0.06,208.93,208.9,45.14694336]
[1756457056010,20.12926853,208.93,208.9,45.14694336]
[1756457056303,1e-08,208.93,208.92,58.98486254]
[1756457056508,1e-08,208.93,208.92,104.13138369]
[1756457056709,1e-08,208.93,208.92,84.74211516]
[1756457057804,1e-08,208.93,208.92,104.13138369]
[1756457058679,1e-08,208.93,208.92,71.14652115]
[1756457059221,20.06926854,208.93,208.87,1.91842]
[1756457059429,19.38926853,208.88,208.86,4.78789619]
[1756457059590,20.06926853,208.87,208.85,0.03]
[1756457059793,20.06926853,208.86,208.85,0.03]
[1756457060316,20.06926853,208.86,208.85,4.81812544]
[1756457060510,19.38926853,208.86,208.85,4.81812544]
[1756457061314,20.06926853,208.86,208.85,0.03]
[1756457063093,26.0,208.83,208.73,0.03]
[1756457063314,19.38926853,208.74,208.73,0.03]
[1756457063597,19.38926853,208.74,208.68,0.03]
[1756457063802,38.77853706,208.71,208.61,2.5000228]
[1756457064097,26.68,208.73,208.53,12.63]
[1756457064098,19.38926853,208.62,208.53,12.63]
[1756457064305,19.38926853,208.65,208.57,30.79454474]
[1756457064306,19.38926853,208.59,208.57,30.79454474]
[1756457064605,19.38926853,208.59,208.58,4.82432352]
[1756457065420,0.68,208.66,208.58,5.53432352]
[1756457065721,19.38926853,208.6,208.58,5.53432352]
[1756457066096,19.38926853,208.61,208.58,5.53432352]
[1756457066413,19.38926853,208.6,208.58,5.53432352]
[1756457066617,1.921829,208.73,208.64,26.0]
[1756457066825,19.38926853,208.7,208.65,54.64559401]
[1756457067130,19.38926853,208.68,208.67,26.0]
[1756457067330,19.38926853,208.7,208.65,79.93559401]
[1756457067629,19.38926853,208.69,208.67,0.71]
[1756457067817,19.38926853,208.69,208.65,79.93559401]
[1756457068018,19.38926853,208.7,208.65,80.64559401]
[1756457068231,19.38926853,208.69,208.65,80.64559401]
[1756457068734,19.38926853,208.69,208.66,4.79248538]
[1756457069234,19.38926853,208.7,208.66,16.77369883]
[1756457069406,19.38926853,208.7,208.66,17.48369883]
[1756457069807,19.38926853,208.71,208.66,16.77369883]
[1756457070016,19.38926853,208.72,208.66,36.16296736]
[1756457070212,0.68,208.79,208.71,19.38926853]
[1756457070406,19.38926853,208.78,208.72,19.38926853]
[1756457070632,19.38926853,208.78,208.73,4.79087816]
[1756457070839,20.06926853,208.78,208.73,4.79087816]
[1756457071214,0.68,208.82,208.75,26.0]
[1756457071530,19.38926853,208.8,208.75,66.34]
[1756457071833,19.38926853,208.79,208.75,66.34]
[1756457072036,0.68,208.83,208.75,66.34]
[1756457072240,19.38926853,208.8,208.75,66.34]
[1756457072530,200.44,208.9,208.75,66.34]
[1756457072531,19.38926853,208.78,208.75,66.34]
[1756457072836,20.06926853,208.78,208.76,4.79018969]
[1756457075144,19.38926853,208.77,208.76,4.79018969]
[1756457075555,19.38926853,208.79,208.76,4.79018969]
[1756457075740,19.38926853,208.78,208.76,4.79018969]
[1756457077251,19.38926853,208.79,208.76,4.79018969]
[1756457078070,19.38926853,208.79,208.7,13.59559401]
[1756457078071,19.38926853,208.77,208.64,0.69]
[1756457078235,24.17860554,208.8,208.64,0.69]
[1756457078236,19.38926853,208.68,208.65,53.93559401]
[1756457078427,0.68,208.73,208.69,4.79179644]
[1756457078743,19.38926853,208.7,208.69,4.79179644]
[1756457080160,20.06926853,208.7,208.62,18.38899828]
[1756457080323,0.68,208.75,208.65,19.38926853]
[1756457080530,19.38926853,208.7,208.67,4.79225571]
[1756457080940,19.38926853,208.71,208.67,4.79225571]
[1756457081119,19.38926853,208.68,208.6,0.69]
[1756457081320,19.38926853,208.64,208.61,13.59559401]
[1756457081523,19.38926853,208.63,208.6,40.32]
[1756457081758,0.68,208.66,208.6,40.32]
[1756457081980,19.38926853,208.62,208.6,40.32]
[1756457082478,0.68,208.66,208.61,4.79363405]
[1756457082642,19.38926853,208.65,208.62,0.69]
[1756457082967,19.38926853,208.64,208.61,16.77771918]
[1756457083163,19.38926853,208.65,208.61,17.46771918]
[1756457083374,19.38926853,208.65,208.64,26.0]
[1756457084451,19.38926853,208.65,208.64,30.79294478]
[1756457085054,19.38926853,208.7,208.64,103.17457527]
[1756457085263,19.38926853,208.71,208.64,103.17457527]
[1756457085652,0.68,208.73,208.68,26.0]
[1756457085836,19.38926853,208.71,208.68,26.0]
[1756457086373,19.38926853,208.7,208.69,4.79179644]
[1756457087356,20.06926853,208.7,208.65,26.0]
[1756457087672,19.38926853,208.66,208.64,40.32]
[1756457087875,19.38926853,208.65,208.64,40.32]
[1756457088244,0.68,208.69,208.64,40.32]
[1756457088460,19.38926853,208.65,208.64,40.32]
[1756457088663,19.38926853,208.65,208.64,45.11294478]
[1756457088868,19.38926853,208.66,208.64,45.11294478]
[1756457089279,14.408184,208.74,208.67,26.0]
[1756457089575,0.68,208.77,208.68,54.60559401]
[1756457089869,19.38926853,208.73,208.68,54.60559401]
[1756457090072,19.38926853,208.73,208.68,53.91559401]
[1756457090376,19.38926853,208.73,208.69,0.69]
[1756457090572,19.38926853,208.73,208.7,4.79156684]
[1756457090748,19.38926853,208.72,208.7,4.79156684]
[1756457091673,20.06926853,208.71,208.62,26.03]
[1756457091857,19.38926853,208.65,208.63,40.32]
[1756457092572,19.38926853,208.65,208.63,45.11317451]
[1756457093040,0.68,208.7,208.63,45.11317451]
[1756457093242,19.38926853,208.66,208.63,45.11317451]
[1756457093674,0.68,208.7,208.63,45.11317451]
[1756457093971,19.38926853,208.66,208.63,45.11317451]
[1756457094274,19.38926853,208.64,208.63,26.0]
[1756457094647,19.38926853,208.64,208.63,30.79317451]
[1756457095466,19.38926853,208.66,208.63,31.48317451]
[1756457095666,19.38926853,208.66,208.64,40.3]
[1756457095870,19.38926853,208.65,208.64,40.3]
[1756457096172,19.38926853,208.7,208.65,13.59559401]
[1756457096348,19.38926853,208.71,208.68,26.0]
[1756457096555,19.38926853,208.71,208.68,66.3]
[1756457096860,19.38926853,208.71,208.69,4.79179644]
[1756457097455,0.68,208.74,208.69,4.79179644]
[1756457097652,0.06,208.78,208.7,0.69]
[1756457097653,0.74,208.78,208.7,0.69]
[1756457097957,19.38926853,208.73,208.71,40.3]
[1756457098475,19.38926853,208.72,208.71,40.3]
[1756457098771,19.38926853,208.72,208.71,45.09133726]
[1756457099265,19.38926853,208.74,208.71,45.09133726]
[1756457099645,19.38926853,208.73,208.71,45.09133726]
[1756457100046,19.38926853,208.72,208.71,45.09133726]
[1756457100245,0.06,208.78,208.68,26.0]
[1756457100466,0.71,208.77,208.69,66.3]
[1756457100669,0.71,208.76,208.7,45.09148408]
[1756457101259,19.38926853,208.74,208.7,57.07040118]
[1756457101460,0.06,208.78,208.73,26.0]
[1756457101658,0.06,208.78,208.73,85.66926853]
[1756457101975,19.44926853,208.78,208.74,0.66]
[1756457102173,19.44926853,208.78,208.73,66.28]
[1756457102174,19.38926853,208.75,208.62,0.03]
[1756457102348,19.38926853,208.68,208.64,0.66]
[1756457102546,26.0,208.76,208.66,26.0]
[1756457102763,19.38926853,208.67,208.64,0.03]
[1756457102966,19.38926853,208.65,208.64,26.03]
[1756457103170,19.38926853,208.68,208.64,26.69]
[1756457103555,19.38926853,208.67,208.64,26.03]
[1756457103754,19.38926853,208.66,208.64,26.03]
[1756457104175,19.38926853,208.68,208.64,0.69]
[1756457104372,19.38926853,208.69,208.65,26.0]
[1756457104672,1e-08,208.76,208.69,39.59559401]
[1756457104871,1e-08,208.76,208.75,19.38926853]
[1756457105172,1e-08,208.76,208.75,53.87559401]
[1756457105470,1e-08,208.76,208.75,73.92486254]
[1756457105674,1e-08,208.76,208.75,74.40390445]
[1756457106168,1e-08,208.76,208.75,73.92486254]
[1756457106371,0.06,208.81,208.8,13.59559401]
[1756457106554,0.06,208.81,208.8,73.26486254]
[1756457106752,0.06,208.81,208.8,78.71413457]
[1756457106951,1e-08,208.81,208.8,79.19306177]
[1756457107368,1e-08,208.81,208.8,23.0923485]
[1756457107571,1e-08,208.81,208.8,92.44656341]
[1756457107875,1e-08,208.81,208.8,97.44656341]
[1756457109648,1e-08,208.83,208.82,39.59559401]
[1756457109856,1e-08,208.83,208.82,113.45617271]
[1756457110074,1e-08,208.83,208.82,113.63729138]
[1756457110789,1e-08,208.83,208.82,118.42610471]
[1756457111154,1e-08,208.83,208.82,117.76610471]
[1756457111356,1e-08,208.83,208.82,3.56855526]
[1756457111570,1e-08,208.83,208.82,40.24]
[1756457111849,30.26314212,208.83,208.77,40.24]
[1756457112178,1e-08,208.83,208.82,69.14873612]
[1756457112477,1e-08,208.83,208.82,113.60982282]
[1756457112668,1e-08,208.83,208.82,72.70982282]
[1756457112976,1e-08,208.83,208.82,114.17754945]
[1756457113376,1e-08,208.83,208.82,87.58855471]
[1756457113575,1e-08,208.83,208.82,117.14169682]
[1756457113875,1e-08,208.83,208.82,76.90169682]
[1756457114176,1e-08,208.83,208.82,73.9929607]
[1756457115069,1e-08,208.83,208.82,69.20414737]
[1756457115255,30.26314212,208.83,208.82,40.24]
[1756457115459,30.26314212,208.83,208.76,4.79018969]
[1756457115756,29.55314211,208.8,208.77,43.20366257]
[1756457115970,30.26314211,208.79,208.74,18.38624266]
[1756457116178,0.71,208.79,208.75,43.20373945]
[1756457116377,0.71,208.79,208.78,26.0]
[1756457117154,29.55314211,208.8,208.78,26.0]
[1756457118279,29.55314211,208.8,208.78,30.78963148]
[1756457118677,30.26314211,208.8,208.78,26.0]
[1756457118974,1e-08,208.83,208.79,53.83559401]
[1756457119273,1e-08,208.83,208.82,60.34195544]
[1756457119488,1e-08,208.83,208.82,100.56195544]
[1756457119698,1e-08,208.83,208.82,71.00881333]
[1756457121178,1e-08,208.83,208.82,66.22]
[1756457121368,1e-08,208.83,208.81,4.78902756]
[1756457121369,30.26314212,208.83,208.81,40.22]
[1756457121567,30.26314211,208.82,208.79,26.0]
[1756457121895,30.26314211,208.82,208.79,40.22]
[1756457122397,1e-08,208.83,208.79,40.22]
[1756457122770,29.55314212,208.83,208.79,40.22]
[1756457122969,1e-08,208.83,208.79,40.22]
[1756457123384,1e-08,208.83,208.8,4.78927203]
[1756457123583,1e-08,208.83,208.81,66.22]
[1756457124284,29.55314212,208.83,208.81,66.22]
[1756457124488,30.26314212,208.83,208.81,66.22]
[1756457125086,1e-08,208.83,208.81,66.22]
[1756457125487,1e-08,208.83,208.82,48.59754945]
[1756457125673,1e-08,208.83,208.82,49.07643078]
[1756457125996,0.71,209.03,208.92,39.59559401]
[1756457126180,29.55314211,209.0,208.92,82.7747135]
[1756457126374,29.55314211,208.97,208.92,42.5547135]
[1756457126574,29.55314212,208.93,208.92,66.22]
[1756457126772,1e-08,208.93,208.92,66.22]
[1756457127478,0.71000001,208.93,208.92,66.22]
[1756457127686,1e-08,208.93,208.92,71.00652115]
[1756457127999,0.71000001,208.93,208.92,66.22]
[1756457128178,30.26314212,208.93,208.92,26.0]
[1756457128378,30.26314212,208.93,208.92,66.2]
[1756457129295,1e-08,208.93,208.92,70.98652115]
[1756457130987,1e-08,208.93,208.92,44.98652115]
[1756457131184,1e-08,208.93,208.92,88.85525727]
[1756457131401,1e-08,208.93,208.92,91.80845683]
[1756457131604,1e-08,208.93,208.92,62.25531472]
[1756457131776,1e-08,208.93,208.92,91.80845683]
[1756457132101,0.06,208.96,208.95,39.59559401]
[1756457132300,0.06,208.96,208.95,109.32873612]
[1756457132511,0.06,208.96,208.95,110.04873612]
[1756457133179,1e-08,208.96,208.95,112.99889784]
[1756457133608,1e-08,208.96,208.95,117.78473177]
[1756457134096,1e-08,208.96,208.95,88.22962869]
[1756457134394,1e-08,208.96,208.95,48.04962869]
[1756457134595,1e-08,208.96,208.95,114.83457005]
[1756457134779,1e-08,208.96,208.95,117.78205746]
[1756457136009,1e-08,208.96,208.95,88.22891535]
[1756457136187,1e-08,208.96,208.95,122.78205746]
[1756457137504,1e-08,208.96,208.95,122.77910983]
[1756457138199,1e-08,208.96,208.95,201.27910983]
[1756457139204,1e-08,208.96,208.95,161.09910983]
[1756457139383,1e-08,208.96,208.95,201.25910983]
[1756457141110,1e-08,208.96,208.95,204.79952553]
[1756457141284,1e-08,208.96,208.95,135.08638342]
[1756457141487,1e-08,208.96,208.95,164.63952553]
[1756457141804,1e-08,208.96,208.95,171.68596772]
[1756457142000,1e-08,208.96,208.95,201.23910983]
[1756457142395,1e-08,208.96,208.95,122.73910983]
[1756457142794,1e-08,208.99,208.98,39.59559401]
[1756457143112,0.1,209.04,209.02,13.59559401]
[1756457143295,0.1,209.04,209.03,72.98607833]
[1756457143613,212.4,209.2,209.03,72.98607833]
[1756457143817,0.7,209.12,209.11,26.0]
[1756457144012,0.7,209.12,209.11,66.14]
[1756457144202,19.95048432,209.12,209.11,66.14]
[1756457144714,0.7,209.12,209.11,66.14]
[1756457145121,19.95048432,209.12,209.1,4.78236038]
[1756457145308,30.19639433,209.11,209.1,40.14]
[1756457145491,30.19639433,209.11,209.09,66.14]
[1756457145690,0.7,209.1,209.09,66.14]
[1756457146613,30.19639433,209.1,209.09,40.14]
[1756457146914,0.7,209.1,209.09,40.14]
[1756457147118,0.7,209.1,209.09,44.92262948]
[1756457148696,0.7,209.1,209.09,44.90262948]
[1756457149317,0.7,209.14,209.12,26.0]
[1756457149534,13.59559401,209.22,209.13,40.12]
[1756457150029,0.7,209.21,209.13,40.12]
[1756457150237,0.2,209.2,209.12,40.1]
[1756457150440,18.37525178,209.22,209.12,40.1]
[1756457150733,29.49639433,209.13,209.12,40.1]
[1756457150942,29.49639433,209.13,209.1,40.1]
[1756457151237,4.77965777,209.22,209.1,40.1]
[1756457151641,29.49639433,209.15,209.1,40.1]
[1756457151822,4.77965777,209.22,209.13,26.0]
[1756457152014,29.49639433,209.14,209.13,66.1]
[1756457152207,30.19639433,209.14,209.13,66.1]
[1756457152539,30.19639433,209.14,209.13,70.88171472]
[1756457153038,30.19639433,209.14,209.13,40.1]
[1756457153220,0.7,209.14,209.13,40.1]
[1756457153422,30.19639433,209.14,209.04,11.9592083]
[1756457153641,0.7,209.13,209.05,58.47913861]
[1756457153818,0.7,209.12,209.08,26.0]
[1756457154149,0.7,209.11,209.09,40.1]
[1756457154310,29.49639433,209.12,209.1,4.78240076]
[1756457154508,30.19639433,209.12,209.1,4.78240076]
[1756457154736,29.49639433,209.13,209.11,40.1]
[1756457154940,30.19639433,209.12,209.11,40.1]
[1756457155436,30.19639433,209.12,209.09,40.08]
[1756457155743,29.49639433,209.1,209.08,40.08]
[1756457155929,30.19639433,209.09,209.08,40.08]
[1756457156326,30.19639433,209.09,209.04,30.78377344]
[1756457156527,29.49639433,209.07,209.06,40.08]
[1756457156727,30.19639433,209.07,209.02,4.78421485]
[1756457156931,0.7,209.06,209.04,40.08]
[1756457157323,29.49639433,209.07,209.04,40.08]
[1756457157533,0.7,209.07,209.04,40.08]
[1756457157730,30.19639433,209.07,209.04,40.08]
[1756457158326,0.7,209.07,209.04,40.08]
[1756457158526,0.7,209.07,209.05,4.7835446]
[1756457158728,30.19639433,209.07,209.05,4.7835446]
[1756457158942,30.19639433,209.07,209.04,40.11]
[1756457158943,30.19639433,209.06,209.04,0.03]
[1756457159144,29.49639433,209.05,209.04,0.03]
[1756457159541,30.19639433,209.05,209.04,0.03]
[1756457160254,83.87198834,209.05,209.04,0.03]
[1756457160436,29.49639433,209.02,209.01,0.03]
[1756457160641,47.87621951,209.02,209.01,0.03]
[1756457160834,47.87621951,209.02,208.92,0.69]
[1756457160835,0.68,209.02,208.92,0.69]
[1756457161037,29.49639433,208.98,208.94,26.0]
[1756457161242,29.49639433,208.95,208.92,0.03]
[1756457161431,29.49639433,208.93,208.92,0.03]
[1756457161929,30.17639433,208.93,208.92,0.03]
[1756457162532,34.96268638,208.93,208.92,0.03]
[1756457163625,0.68,208.93,208.92,0.03]
[1756457163855,29.49639433,208.93,208.92,0.03]
[1756457164932,29.49639433,208.94,208.92,0.03]
[1756457165137,29.49639433,208.96,208.92,0.03]
[1756457165457,29.49639433,208.94,208.92,0.03]
[1756457165756,29.49639433,208.93,208.92,0.03]
[1756457166052,0.68,208.99,208.92,0.69]
[1756457166257,29.49639433,208.95,208.92,26.69]
[1756457166453,0.68,208.99,208.92,26.03]
[1756457166454,29.49639433,208.96,208.92,26.03]
[1756457166646,29.49639433,208.96,208.92,30.8163043]
[1756457166850,29.49639433,208.95,208.92,30.8163043]
[1756457167356,19.27918865,208.95,208.92,30.8163043]
[1756457168150,213.08,209.05,208.95,26.0]
[1756457168337,19.27918865,209.04,209.01,26.0]
[1756457168531,19.27918865,209.02,208.95,26.66]
[1756457168737,19.27918865,209.01,208.98,30.7851469]
[1756457168938,19.27918865,209.01,208.98,26.0]
[1756457169143,40.06,209.07,208.95,26.0]
[1756457169144,19.27918865,208.99,208.95,26.0]
[1756457169338,52.01774168,209.07,208.92,40.75]
[1756457169339,19.27918865,208.96,208.92,0.03]
[1756457169546,19.27918865,208.93,208.92,0.03]
[1756457169736,19.95918865,208.93,208.92,0.03]
[1756457171156,19.27918865,208.93,208.92,0.03]
[1756457171357,29.55145617,208.93,208.92,0.03]
[1756457172059,30.23145617,208.93,208.92,0.03]
[1756457172962,30.23145617,208.93,208.89,0.03]
[1756457172963,13.59559401,208.92,208.89,0.03]
[1756457173138,29.55145617,208.9,208.89,0.03]
[1756457173540,43.82705018,208.9,208.89,0.03]
[1756457173764,83.88705018,208.9,208.89,0.03]
[1756457174231,30.23145617,208.9,208.89,0.03]
[1756457174436,69.63145617,208.9,208.89,0.03]
[1756457174654,29.55145617,208.9,208.89,0.03]
[1756457175369,4.78584969,208.95,208.89,0.03]
[1756457175370,29.55145617,208.91,208.89,0.03]
[1756457175546,29.55145617,208.93,208.89,0.69]
[1756457175859,0.68,208.96,208.89,0.69]
[1756457176041,29.55145617,208.93,208.89,0.69]
[1756457176440,29.55145617,208.93,208.9,0.66]
[1756457176640,29.55145617,208.93,208.89,0.03]
[1756457176641,29.55145617,208.94,208.91,0.66]
[1756457176861,0.68,209.04,208.93,29.55145617]
[1756457177036,29.55145617,208.94,208.89,0.03]
[1756457177241,29.55145617,208.9,208.89,0.03]
[1756457178874,30.23145617,208.9,208.89,0.03]
[1756457179055,35.01843558,208.9,208.89,0.03]
[1756457179361,30.23145617,208.9,208.89,0.03]
[1756457180352,35.01843558,208.9,208.89,0.03]
[1756457183185,75.09843558,208.9,208.89,0.03]
[1756457183552,101.09843558,208.9,208.89,0.03]
[1756457185442,61.01843558,208.9,208.89,0.03]
[1756457185669,101.09843558,208.9,208.89,0.03]
[1756457185869,61.01843558,208.9,208.89,0.03]
[1756457186056,75.09843558,208.9,208.89,0.03]
[1756457186642,35.01843558,208.9,208.89,0.03]
[1756457186864,75.09843558,208.9,208.89,0.03]
[1756457187270,35.01843558,208.9,208.89,0.03]
[1756457187456,13.59559401,208.88,208.87,0.03]
[1756457187664,13.59559401,208.87,208.84,0.03]
[1756457187866,29.55145617,208.85,208.84,0.03]
[1756457188194,43.14705018,208.85,208.84,0.03]
[1756457188472,43.82705018,208.85,208.84,0.03]
[1756457189454,48.61517562,208.85,208.84,0.03]
[1756457191253,74.61517562,208.85,208.84,0.03]
[1756457191454,64.37828875,208.85,208.77,0.03]
[1756457191653,19.3145693,208.78,208.77,0.03]
[1756457192177,19.3145693,208.78,208.77,0.72]
[1756457193061,26.0,208.85,208.77,0.72]
[1756457193380,19.3145693,208.78,208.77,0.72]
[1756457193581,19.3145693,208.78,208.77,0.03]
[1756457193964,19.3145693,208.78,208.7,31.29333202]
[1756457194161,19.3145693,208.76,208.7,31.29333202]
[1756457194355,0.68,208.84,208.71,19.3145693]
[1756457194571,19.3145693,208.79,208.73,19.3145693]
[1756457195002,19.3145693,208.78,208.72,32.91016331]
[1756457195211,40.06,208.83,208.73,4.79087816]
[1756457195368,19.3145693,208.78,208.73,4.79087816]
[1756457195711,19.3145693,208.79,208.73,4.79087816]
[1756457195874,19.3145693,208.79,208.73,24.10544746]
[1756457196085,26.0,208.86,208.76,26.0]
[1756457196284,19.3145693,208.86,208.8,19.3145693]
[1756457196597,19.3145693,208.85,208.81,0.69]
[1756457196794,19.3145693,208.86,208.82,0.69]
[1756457197164,19.3145693,208.86,208.83,0.69]
[1756457197370,0.06,208.85,208.83,0.69]
[1756457198290,0.06,208.85,208.8,19.3145693]
[1756457198496,0.06,208.85,208.84,0.69]
[1756457198684,0.06,208.85,208.81,0.69]
[1756457198886,0.06,208.85,208.79,30.35884895]
[1756457198887,19.3745693,208.85,208.79,30.78950141]
[1756457199085,19.3145693,208.84,208.79,5.47950141]
[1756457199294,19.3145693,208.84,208.8,0.69]
[1756457199482,0.06,208.85,208.8,0.69]
[1756457199787,19.3145693,208.82,208.78,4.78969467]
[1756457199990,19.3145693,208.82,208.78,5.47969467]
[1756457200578,19.3145693,208.82,208.76,45.3145693]
[1756457200579,44.90815714,208.85,208.75,5.48041916]
[1756457200777,19.3145693,208.84,208.78,19.3145693]
[1756457200978,19.3745693,208.85,208.79,0.69]